fUSD/lending_fUSD_20250510
["ID","MTS","AMOUNT","RATE_DAILY","PERIOD"]
[360608454,1746900662567,-405.33,0.00019999,2]
[360608455,1746900662577,-405.33,0.00019999,2]
[360608456,1746900662588,-405.33,0.00019999,2]
[360608457,1746900662597,-405.33,0.00019999,2]
[360608458,1746900662607,-405.40793768,0.00019999,2]
[360608459,1746900662617,-400.0,0.00019999,2]
[360608460,1746900662627,-400.0,0.00019999,2]
[360608461,1746900662637,-400.0,0.00019999,2]
[360608462,1746900662647,-400.0,0.00019999,2]
[360608463,1746900662657,-400.0,0.00019999,2]
[360608464,1746900662668,-400.0,0.00019999,2]
[360608465,1746900662681,-400.0,0.00019999,2]
[360608466,1746900662691,-400.0,0.00019999,2]
[360608467,1746900662701,-400.0,0.00019999,2]
[360608468,1746900662713,-150.08604403,0.00019999,2]
[360608469,1746900662724,-1468.4,0.00019999,2]
[360608470,1746900662734,-1468.4,0.00019999,2]
[360608471,1746900662746,-1468.4,0.00019999,2]
[360608472,1746900662756,-1468.4,0.00019999,2]
[360608473,1746900662766,-1468.4,0.00019999,2]
[360608474,1746900662777,-1468.4,0.00019999,2]
[360608475,1746900662787,-1468.4,0.00019999,2]
[360608476,1746900662797,-1468.4,0.00019999,2]
[360608477,1746900662808,-1468.4,0.00019999,2]
[360608478,1746900662818,-1468.4,0.00019999,2]
[360608479,1746900662828,-1468.49345772,0.00019999,2]
[360608480,1746900662838,-127.80991328,0.00019999,2]
[360608481,1746900663016,-272.19008672,0.00019999,2]
[360608482,1746900663027,-78.81452505,0.00019999,2]
[360608483,1746900663068,-321.18547495,0.00019999,2]
[360608484,1746900663078,-324.362132,0.00019999,2]
[360608485,1746900663088,-306.80168087,0.00019999,2]
[360608486,1746900663105,-857.32831913,0.00019999,2]
[360608487,1746900663114,-1164.13,0.00019999,2]
[360608488,1746900663124,-1164.13,0.00019999,2]
[360608489,1746900663134,-1164.13,0.00019999,2]
[360608490,1746900663144,-1164.13,0.00019999,2]
[360608491,1746900663154,-1164.13,0.00019999,2]
[360608492,1746900663164,-1164.13,0.00019999,2]
[360608493,1746900663174,-1164.13,0.00019999,2]
[360608494,1746900663184,-1164.13,0.00019999,2]
[360608495,1746900663195,-1164.29590883,0.00019999,2]
[360608496,1746900663205,-925.97,0.00019999,2]
[360608497,1746900663216,-925.97,0.00019999,2]
[360608498,1746900663228,-925.97,0.00019999,2]
[360608499,1746900663238,-925.97,0.00019999,2]
[360608500,1746900663249,-925.97,0.00019999,2]
[360608501,1746900663258,-925.97,0.00019999,2]
[360608502,1746900663268,-490.78108037,0.00019999,2]
[360608503,1746900663280,-317.8546284,0.00019999,2]
[360608504,1746900663292,-117.33429123,0.00019999,2]
[360608505,1746900663302,-154.70310877,0.00019999,2]
[360608506,1746900663709,-500.0,0.00019178,2]
[360608507,1746900663720,-500.0,0.00019178,2]
[360608508,1746900663729,-400.0,0.00019178,2]
[360608509,1746900663739,-500.0,0.00019178,2]
[360608510,1746900663750,-500.0,0.00019178,2]
[360608511,1746900663761,-500.0,0.00019178,2]
[360608512,1746900663771,-500.0,0.00019178,2]
[360608513,1746900663781,-500.0,0.00019178,2]
[360608514,1746900663791,-500.0,0.00019178,2]
[360608515,1746900663801,-500.0,0.00019178,2]
[360608516,1746900663811,-500.0,0.00019178,2]
[360608517,1746900663821,-500.0,0.00019178,2]
[360608518,1746900663832,-336.62600331,0.00019178,2]
[360608519,1746900663842,-500.0,0.00019178,2]
[360608520,1746900663852,-500.0,0.00019178,2]
[360608521,1746900663863,-500.0,0.00019178,2]
[360608522,1746900663873,-500.0,0.00019178,2]
[360608523,1746900663882,-500.0,0.00019178,2]
[360608524,1746900663893,-500.0,0.00019178,2]
[360608525,1746900663903,-500.0,0.00019178,2]
[360608526,1746900663913,-500.0,0.00019178,2]
[360608527,1746900663923,-500.0,0.00019178,2]
[360608528,1746900663934,-500.0,0.00019178,2]
[360608529,1746900663944,-500.0,0.00019178,2]
[360608530,1746900663954,-500.0,0.00019178,2]
[360608531,1746900663964,-500.0,0.00019178,2]
[360608532,1746900664026,-500.0,0.00019178,2]
[360608533,1746900664036,-500.0,0.00019178,2]
[360608534,1746900664046,-400.0,0.00019178,2]
[360608535,1746900664056,-400.0,0.00019178,2]
[360608536,1746900664066,-771.26689123,0.00019999,2]
[360608537,1746900664076,-925.97,0.00019999,2]
[360608538,1746900664086,-926.19309409,0.00019999,2]
[360608539,1746900664096,-240.46466769,0.0002,2]
[360608540,1746900664105,-19589.26934388,0.0002,2]
[360608541,1746900664117,-1648.0,0.0002,2]
[360608542,1746900664233,-356.90623309,0.0002,2]
[360608543,1746900664245,-1220.05,0.0002,2]
[360608544,1746900664276,-400.0,0.00019178,2]
[360608545,1746900664285,-1673.40750912,0.0002,2]
[360608546,1746900664298,-3798.42034629,0.0002,2]
[360608547,1746900664333,-3788.88839461,0.0002,2]
[360608548,1746900664344,-1771.55640968,0.0002,2]
[360608549,1746900664365,-400.0,0.00019178,2]
[360608550,1746900664375,-4658.5,0.0002,2]
[360608552,1746900684991,781.86,0.00020575,30]
[360608553,1746900696035,50000.0,0.0003,30]
[360608555,1746900752293,150.0,1e-08,2]
[360608556,1746900755549,50000.0,0.0003,30]
[360608557,1746900787563,1297.0,0.00030137,120]
[360608559,1746900862995,50000.0,0.0003,30]
[360608560,1746900915618,50000.0,0.0003,30]
[360608561,1746900931224,570.06,0.00013699,2]
[360608562,1746900978408,50000.0,0.0003,30]
[360608563,1746901076205,50000.0,0.0003,30]
[360608564,1746901089870,9518.15830543,0.0003,30]
[360608565,1746901114399,-152.29118431,0.00017987,2]
[360608566,1746901116969,-192.32179121,0.00017987,2]
[360608567,1746901131714,-250.0,0.0001797,2]
[360608568,1746901146824,-385.04456679,0.0001797,2]
[360608569,1746901168346,250.0,0.00017,2]
[360608570,1746901193755,-199.56662921,0.00017913,2]
[360608571,1746901207189,-416.08337079,0.00017913,2]
[360608572,1746901223842,158.71095394,0.00017898,2]
[360608573,1746901227234,1359.8,0.00026875,120]
[360608574,1746901236987,-278.1108124,0.00017898,2]
[360608575,1746901251224,-282.46097747,0.00017898,2]
[360608576,1746901266177,-269.73553638,0.00017898,2]
[360608577,1746901346735,-231.30280941,0.00017862,2]
[360608578,1746901356851,-18.69719059,0.00017862,2]
[360608579,1746901391057,-200.02122182,0.00017851,2]
[360608580,1746901402437,-188.41933035,0.00017851,2]
[360608581,1746901417067,-251.79378616,0.00017827,2]
[360608582,1746901432832,-251.79378616,0.00017827,2]
[360608583,1746901446879,-300.0,0.00017826,2]
[360608584,1746901446903,-250.0,0.00017826,2]
[360608585,1746901446930,-13.8736581,0.00017827,2]
[360608586,1746901459590,1809.36,0.00015875,2]
[360608587,1746901461845,-271.88450744,0.00017827,2]
[360608588,1746901510922,151.95547799,0.000154,2]
[360608589,1746901512113,-218.35609815,0.00017736,2]
[360608590,1746901522045,-50.90492085,0.00017736,2]
[360608591,1746901522072,-106.4009218,0.00017751,2]
[360608592,1746901536311,-46.01750276,0.00017751,2]
[360608593,1746901536335,-122.72249724,0.00017826,2]
[360608594,1746901552274,-232.51644824,0.00017737,2]
[360608595,1746901566303,-152.0,0.00017649,2]
[360608596,1746901581751,-247.15644824,0.00017576,2]
[360608597,1746901596292,-228.19355176,0.00017576,2]
[360608598,1746901596315,-148.0,0.00017649,2]
[360608599,1746901596336,-50.48529452,0.0001765,2]
[360608600,1746901612065,-149.51470548,0.0001765,2]
[360608601,1746901612088,-33.87852945,0.0001765,2]
[360608602,1746901623275,254.25,0.00027,60]
[360608603,1746901626795,-230.37228598,0.0001765,2]
[360608604,1746901637126,-236.69,0.00017528,2]
[360608605,1746901637149,-39.94623626,0.0001765,2]
[360608606,1746901641756,-269.18136954,0.0001765,2]
[360608607,1746901645084,-971.36479296,0.0001765,2]
[360608608,1746901651863,870.22072013,0.00030136,120]
[360608609,1746901656318,-554.70706025,0.00017545,2]
[360608610,1746901672969,-200.0,0.00017509,2]
[360608611,1746901679066,4560.40341951,0.0001,2]
[360608612,1746901686205,-150.0,0.00017489,2]
[360608613,1746901686233,-89.37157021,0.00017499,2]
[360608614,1746901701266,-110.62842979,0.00017499,2]
[360608615,1746901701296,-78.07491172,0.00017509,2]
[360608616,1746901716328,-192.11888246,0.00017458,2]
[360608617,1746901718678,4889.59658049,0.000149,2]
[360608619,1746901728164,19310.59858988,0.00013368,2]
[360608620,1746901731276,-234.96111754,0.00017458,2]
[360608621,1746901731297,-69.92018728,0.00017509,2]
[360608622,1746901747336,-188.367901,0.00017509,2]
[360608623,1746901750110,-690.40724103,0.00017509,2]
[360608624,1746901754131,-1028.38975897,0.00017509,2]
[360608625,1746901754152,-1836.20293975,0.00017545,2]
[360608626,1746901754174,-200.0,0.00017604,2]
[360608627,1746901754196,-300.0,0.00017649,2]
[360608628,1746901754221,-7563.09678581,0.0001765,2]
[360608629,1746901754243,-1077.27750276,0.00017826,2]
[360608630,1746901754265,-300.0,0.00017826,2]
[360608631,1746901754286,-18019.94917271,0.00017827,2]
[360608632,1746901764094,-2766.89476025,0.00017827,2]
[360608633,1746901767103,-2323.81032918,0.00017827,2]
[360608634,1746901767125,-3450.92944783,0.00017851,2]
[360608635,1746901767146,-250.0,0.00017864,2]
[360608636,1746901767168,-955.29171981,0.00017898,2]
[360608637,1746901767192,-152.41842455,0.00017899,2]
[360608638,1746901767215,-1359.8,0.00017917,2]
[360608639,1746901767236,-568.94,0.00017962,2]
[360608640,1746901767258,-882.94543321,0.0001797,2]
[360608641,1746901767279,-34.76129121,0.00017987,2]
[360608648,1746901824331,-184.97111754,0.00017798,2]
[360608653,1746901832090,-168.81888246,0.00017798,2]
[360608654,1746901832100,-7745.84573327,0.00017987,2]
[360608655,1746901832110,-200.0,0.00018017,2]
[360608657,1746901832122,-129.39411979,0.00018017,2]
[360608658,1746901832137,-120.60588021,0.00018017,2]
[360608659,1746901832146,-1200.0,0.00018094,2]
[360608660,1746901832156,-275.0,0.00018094,2]
[360608661,1746901832166,-160.33538427,0.00018095,2]
[360608662,1746901832184,-4.24461573,0.00018095,2]
[360608663,1746901832194,-151.0,0.00018096,2]
[360608664,1746901832204,-260.84454772,0.000181,2]
[360608665,1746901832287,-539.30050583,0.000181,2]
[360608666,1746901832340,-919.65103075,0.000181,2]
[360608667,1746901832350,-9198.89954594,0.00018107,2]
[360608668,1746901832362,-550.99707701,0.00018107,2]
[360608669,1746901832373,-887.8873787,0.00018107,2]
[360608670,1746901832403,-520.28391676,0.00018107,2]
[360608671,1746901832442,-53.01208159,0.00018107,2]
[360608672,1746901832452,-1809.36,0.00018139,2]
[360608673,1746901832463,-1158.94,0.00018146,2]
[360608674,1746901832472,-217.32,0.000182,2]
[360608675,1746901832483,-2468.08,0.0001829,2]
[360608676,1746901832492,-155.0,0.00018323,2]
[360608677,1746901832502,-151.0,0.00018323,2]
[360608678,1746901832511,-207.4,0.00018323,2]
[360608679,1746901832521,-668.65185757,0.00018323,2]
[360608680,1746901832531,-200.0,0.00018331,2]
[360608681,1746901832540,-8052.48,0.00018356,2]
[360608682,1746901832549,-1000.0,0.00018372,2]
[360608683,1746901832559,-546.11541917,0.00018439,2]
[360608684,1746901832568,-1156.1,0.00018732,2]
[360608685,1746901832578,-1156.1,0.00018732,2]
[360608686,1746901832589,-2033.56986946,0.00018733,2]
[360608688,1746901832598,-151.0,0.00018871,2]
[360608690,1746901832608,-668.65185757,0.00018871,2]
[360608692,1746901832618,-153.28218408,0.000189,2]
[360608694,1746901832628,-2022.3081,0.00018976,2]
[360608696,1746901832637,-1116.4952,0.00018976,2]
[360608698,1746901832646,-900.84152536,0.00018977,2]
[360608700,1746901832656,-304.89470353,0.00018978,2]
[360608702,1746901832666,-632.18,0.0001899,2]
[360608704,1746901832676,-850.0,0.00018998,2]
[360608706,1746901832685,-497.78632315,0.00018998,2]
[360608708,1746901832695,-500.0,0.00018998,2]
[360608710,1746901832705,-500.0,0.00018998,2]
[360608713,1746901832715,-500.0,0.00018998,2]
[360608716,1746901832724,-500.0,0.00018998,2]
[360608719,1746901832733,-500.0,0.00018998,2]
[360608722,1746901832742,-500.0,0.00018998,2]
[360608725,1746901832751,-500.0,0.00018998,2]
[360608728,1746901832761,-500.0,0.00018998,2]
[360608731,1746901832770,-500.0,0.00018998,2]
[360608734,1746901832780,-1500.29827096,0.00019,2]
[360608737,1746901832792,-2213.23172904,0.00019,2]
[360608740,1746901832801,-3713.53,0.00019,2]
[360608743,1746901832811,-3713.53,0.00019,2]
[360608745,1746901832822,-1485.41,0.00019,2]
[360608747,1746901832831,-300.0,0.00019,2]
[360608749,1746901832842,-389.93793726,0.00019,2]
[360608751,1746901832852,-23528.66752984,0.00019,2]
[360608753,1746901832862,-213.21052766,0.00019014,2]
[360608755,1746901832871,-213.21052766,0.00019068,2]
[360608757,1746901832880,-9736.3487,0.00019078,2]
[360608759,1746901832890,-900.84152534,0.0001908,2]
[360608761,1746901832899,-500.0,0.00019096,2]
[360608763,1746901832909,-213.21052766,0.00019151,2]
[360608765,1746901832918,-500.0,0.00019173,2]
[360608767,1746901832928,-135.52069171,0.00019173,2]
[360608769,1746901832939,-280.46066488,0.00019173,2]
[360608776,1746901832994,-500.0,0.00018998,2]
[360608778,1746901833003,-207.25689828,0.00018998,2]
[360608780,1746901833013,-16.85962685,0.00018998,2]
[360608782,1746901833024,-462.67350007,0.00018998,2]
[360609271,1746901838083,-20.46687308,0.00018998,2]
[360609273,1746901838093,-500.0,0.00018998,2]
[360609275,1746901838102,-500.0,0.00018998,2]
[360609277,1746901838112,-500.0,0.00018998,2]
[360609279,1746901838123,-500.0,0.00018998,2]
[360609281,1746901838132,-500.0,0.00018998,2]
[360609283,1746901838141,-500.0,0.00018998,2]
[360609285,1746901838150,-500.0,0.00018998,2]
[360609287,1746901838159,-500.0,0.00018998,2]
[360609289,1746901838170,-500.0,0.00018998,2]
[360609291,1746901838180,-278.33472162,0.00018998,2]
[360609293,1746901838190,-500.0,0.00018998,2]
[360609295,1746901838199,-500.0,0.00018998,2]
[360609297,1746901838209,-500.0,0.00018998,2]
[360609300,1746901838218,-500.0,0.00018998,2]
[360609302,1746901838227,-500.0,0.00018998,2]
[360609304,1746901838237,-500.0,0.00018998,2]
[360609306,1746901838246,-500.0,0.00018998,2]
[360609308,1746901838255,-500.0,0.00018998,2]
[360609310,1746901838264,-500.0,0.00018998,2]
[360609311,1746901838273,-500.0,0.00018998,2]
[360609314,1746901838283,-500.0,0.00018998,2]
[360609316,1746901838292,-500.0,0.00018998,2]
[360609318,1746901838302,-500.0,0.00018998,2]
[360609320,1746901838311,-500.0,0.00018998,2]
[360609322,1746901838320,-500.0,0.00018998,2]
[360609324,1746901838330,-500.0,0.00018998,2]
[360609326,1746901838340,-500.0,0.00018998,2]
[360609328,1746901838350,-500.0,0.00018998,2]
[360609329,1746901838359,-500.0,0.00018998,2]
[360609331,1746901838369,-500.0,0.00018998,2]
[360609333,1746901838378,-500.0,0.00018998,2]
[360609335,1746901838388,-500.0,0.00018998,2]
[360609338,1746901838398,-500.0,0.00018998,2]
[360609340,1746901838408,-500.0,0.00018998,2]
[360609342,1746901838417,-500.0,0.00018998,2]
[360609343,1746901838427,-500.0,0.00018998,2]
[360609346,1746901838437,-500.0,0.00018998,2]
[360609348,1746901838446,-500.0,0.00018998,2]
[360609350,1746901838456,-500.0,0.00018998,2]
[360609352,1746901838466,-500.0,0.00018998,2]
[360609354,1746901838476,-500.0,0.00018998,2]
[360609356,1746901838487,-500.0,0.00018998,2]
[360609358,1746901838496,-84.01864341,0.00019173,2]
[360609360,1746901838506,-500.0,0.00019173,2]
[360609362,1746901838515,-632.83391156,0.00019173,2]
[360609364,1746901838525,-500.0,0.00019173,2]
[360609366,1746901838537,-500.0,0.00019173,2]
[360609368,1746901838548,-500.0,0.00019173,2]
[360609370,1746901838557,-400.0,0.00019178,2]
[360609372,1746901838567,-543.14,0.00019178,2]
[360609374,1746901838576,-400.0,0.00019178,2]
[360609376,1746901838585,-400.0,0.00019178,2]
[360609378,1746901838595,-400.0,0.00019178,2]
[360609380,1746901838605,-400.0,0.00019178,2]
[360609382,1746901838615,-401.59953192,0.00019178,2]
[360609384,1746901838624,-181.04,0.00019178,2]
[360609386,1746901838634,-400.0,0.00019178,2]
[360609387,1746901838643,-400.0,0.00019178,2]
[360609389,1746901838652,-400.0,0.00019178,2]
[360609391,1746901838662,-400.0,0.00019178,2]
[360609393,1746901838675,-400.0,0.00019178,2]
[360609395,1746901838684,-164.8712068,0.00019178,2]
[360609397,1746901838695,-495.81623175,0.00019178,2]
[360609399,1746901838705,-469.6448385,0.00019178,2]
[360609401,1746901838715,-400.0,0.00019178,2]
[360609403,1746901838725,-400.0,0.00019178,2]
[360609405,1746901838734,-400.0,0.00019178,2]
[360609407,1746901838743,-400.0,0.00019178,2]
[360609409,1746901838753,-400.0,0.00019178,2]
[360609411,1746901838763,-400.0,0.00019178,2]
[360609412,1746901838773,-464.48360676,0.00019178,2]
[360609415,1746901838783,-400.0,0.00019178,2]
[360609416,1746901838792,-400.0,0.00019178,2]
[360609418,1746901838804,-400.0,0.00019178,2]
[360609420,1746901838813,-400.0,0.00019178,2]
[360609421,1746901838823,-500.0,0.00019178,2]
[360609422,1746901838833,-500.0,0.00019178,2]
[360609423,1746901838843,-400.0,0.00019178,2]
[360609424,1746901838853,-400.0,0.00019178,2]
[360609425,1746901838863,-242.05770414,0.00019178,2]
[360609426,1746901838873,-400.0,0.00019178,2]
[360609427,1746901838884,-400.0,0.00019178,2]
[360609428,1746901838893,-400.0,0.00019178,2]
[360609429,1746901838903,-400.0,0.00019178,2]
[360609430,1746901838912,-400.0,0.00019178,2]
[360609431,1746901838926,-400.0,0.00019178,2]
[360609432,1746901838936,-400.0,0.00019178,2]
[360609433,1746901838946,-400.0,0.00019178,2]
[360609434,1746901838955,-400.0,0.00019178,2]
[360609435,1746901838964,-400.0,0.00019178,2]
[360609436,1746901838974,-400.0,0.00019178,2]
[360609437,1746901838984,-400.0,0.00019178,2]
[360609438,1746901838996,-400.0,0.00019178,2]
[360609439,1746901839006,-400.0,0.00019178,2]
[360609440,1746901839016,-400.0,0.00019178,2]
[360609441,1746901839026,-265.24569272,0.00019178,2]
[360609442,1746901839036,-400.0,0.00019178,2]
[360609443,1746901839049,-400.0,0.00019178,2]
[360609444,1746901839059,-400.0,0.00019178,2]
[360609445,1746901839069,-472.01673203,0.00019178,2]
[360609446,1746901839079,-400.0,0.00019178,2]
[360609447,1746901839090,-250.0,0.00019178,2]
[360609448,1746901839100,-400.0,0.00019178,2]
[360609449,1746901839109,-535.25472723,0.00019178,2]
[360609450,1746901839119,-400.0,0.00019178,2]
[360609451,1746901839129,-400.0,0.00019178,2]
[360609452,1746901839139,-400.0,0.00019178,2]
[360609453,1746901839148,-400.0,0.00019178,2]
[360609454,1746901839158,-400.0,0.00019178,2]
[360609455,1746901839174,-400.0,0.00019178,2]
[360609456,1746901839185,-400.0,0.00019178,2]
[360609457,1746901839195,-400.0,0.00019178,2]
[360609458,1746901839205,-400.0,0.00019178,2]
[360609459,1746901839215,-400.0,0.00019178,2]
[360609460,1746901839226,-400.0,0.00019178,2]
[360609461,1746901839235,-400.0,0.00019178,2]
[360609462,1746901839245,-400.0,0.00019178,2]
[360609463,1746901839255,-400.0,0.00019178,2]
[360609464,1746901839264,-400.0,0.00019178,2]
[360609465,1746901839274,-400.0,0.00019178,2]
[360609466,1746901839284,-400.0,0.00019178,2]
[360609467,1746901839293,-400.0,0.00019178,2]
[360609468,1746901839303,-400.0,0.00019178,2]
[360609469,1746901839314,-400.0,0.00019178,2]
[360609470,1746901839324,-400.0,0.00019178,2]
[360609471,1746901839334,-400.0,0.00019178,2]
[360609472,1746901839344,-400.0,0.00019178,2]
[360609473,1746901839353,-400.0,0.00019178,2]
[360609474,1746901839363,-206.82022159,0.00019178,2]
[360609475,1746901839373,-400.0,0.00019178,2]
[360609476,1746901839383,-400.0,0.00019178,2]
[360609477,1746901839393,-400.0,0.00019178,2]
[360609478,1746901839402,-400.0,0.00019178,2]
[360609479,1746901839412,-400.0,0.00019178,2]
[360609480,1746901839426,-400.0,0.00019178,2]
[360609481,1746901839436,-400.0,0.00019178,2]
[360609482,1746901839445,-439.10290397,0.00019178,2]
[360609483,1746901839455,-400.0,0.00019178,2]
[360609484,1746901839465,-400.0,0.00019178,2]
[360609485,1746901839474,-400.0,0.00019178,2]
[360609486,1746901839484,-400.0,0.00019178,2]
[360609487,1746901839494,-400.0,0.00019178,2]
[360609488,1746901839503,-400.0,0.00019178,2]
[360609489,1746901839513,-400.0,0.00019178,2]
[360609490,1746901839522,-400.0,0.00019178,2]
[360609491,1746901839532,-400.0,0.00019178,2]
[360609492,1746901839541,-400.0,0.00019178,2]
[360609493,1746901839551,-400.0,0.00019178,2]
[360609494,1746901839561,-400.0,0.00019178,2]
[360609495,1746901839570,-400.0,0.00019178,2]
[360609496,1746901839580,-400.0,0.00019178,2]
[360609497,1746901839589,-400.0,0.00019178,2]
[360609498,1746901839599,-400.0,0.00019178,2]
[360609499,1746901839609,-400.0,0.00019178,2]
[360609500,1746901839618,-400.0,0.00019178,2]
[360609501,1746901839628,-400.0,0.00019178,2]
[360609502,1746901839638,-400.0,0.00019178,2]
[360609503,1746901839648,-400.0,0.00019178,2]
[360609504,1746901839659,-400.0,0.00019178,2]
[360609505,1746901839670,-400.0,0.00019178,2]
[360609506,1746901839680,-400.0,0.00019178,2]
[360609507,1746901839690,-400.0,0.00019178,2]
[360609508,1746901839699,-400.0,0.00019178,2]
[360609509,1746901839709,-400.0,0.00019178,2]
[360609510,1746901839718,-400.0,0.00019178,2]
[360609511,1746901839728,-400.0,0.00019178,2]
[360609512,1746901839737,-400.0,0.00019178,2]
[360609513,1746901839746,-400.0,0.00019178,2]
[360609514,1746901839755,-200.0,0.00019178,2]
[360609515,1746901839764,-400.0,0.00019178,2]
[360609516,1746901839774,-400.0,0.00019178,2]
[360609517,1746901839783,-400.0,0.00019178,2]
[360609518,1746901839793,-400.0,0.00019178,2]
[360609519,1746901839802,-400.0,0.00019178,2]
[360609520,1746901839811,-400.0,0.00019178,2]
[360609521,1746901839821,-400.0,0.00019178,2]
[360609522,1746901839830,-400.0,0.00019178,2]
[360609523,1746901839840,-400.0,0.00019178,2]
[360609524,1746901839851,-400.0,0.00019178,2]
[360609525,1746901839862,-400.0,0.00019178,2]
[360609526,1746901839872,-400.0,0.00019178,2]
[360609527,1746901839881,-500.0,0.00019178,2]
[360609528,1746901839891,-400.0,0.00019178,2]
[360609529,1746901839899,-400.0,0.00019178,2]
[360609530,1746901839909,-400.0,0.00019178,2]
[360609531,1746901839920,-400.0,0.00019178,2]
[360609532,1746901839930,-529.27961916,0.00019178,2]
[360609533,1746901839939,-400.0,0.00019178,2]
[360609534,1746901839948,-400.0,0.00019178,2]
[360609535,1746901839958,-400.0,0.00019178,2]
[360609536,1746901839968,-400.0,0.00019178,2]
[360609537,1746901839977,-400.0,0.00019178,2]
[360609538,1746901839987,-400.0,0.00019178,2]
[360609539,1746901839996,-400.0,0.00019178,2]
[360609540,1746901840005,-400.0,0.00019178,2]
[360609541,1746901840014,-400.0,0.00019178,2]
[360609542,1746901840023,-400.0,0.00019178,2]
[360609543,1746901840031,-400.0,0.00019178,2]
[360609544,1746901840044,-400.0,0.00019178,2]
[360609545,1746901840055,-400.0,0.00019178,2]
[360609546,1746901840065,-400.0,0.00019178,2]
[360609547,1746901840075,-400.0,0.00019178,2]
[360609548,1746901840084,-400.0,0.00019178,2]
[360609549,1746901840094,-171.3878721,0.00019178,2]
[360609550,1746901840102,-400.0,0.00019178,2]
[360609551,1746901840111,-400.0,0.00019178,2]
[360609552,1746901840119,-400.0,0.00019178,2]
[360609553,1746901840130,-400.0,0.00019178,2]
[360609554,1746901840139,-400.0,0.00019178,2]
[360609555,1746901840148,-400.0,0.00019178,2]
[360609556,1746901840157,-400.0,0.00019178,2]
[360609557,1746901840167,-400.0,0.00019178,2]
[360609558,1746901840176,-400.0,0.00019178,2]
[360609561,1746901840186,-400.0,0.00019178,2]
[360609564,1746901840238,-400.0,0.00019178,2]
[360609565,1746901840248,-400.0,0.00019178,2]
[360609566,1746901840258,-400.0,0.00019178,2]
[360609568,1746901840267,-400.0,0.00019178,2]
[360609569,1746901840275,-400.0,0.00019178,2]
[360609571,1746901840283,-248.36097816,0.00019178,2]
[360609572,1746901840291,-400.0,0.00019178,2]
[360609573,1746901840300,-400.0,0.00019178,2]
[360609574,1746901840307,-400.0,0.00019178,2]
[360609575,1746901840316,-400.0,0.00019178,2]
[360609576,1746901840323,-402.22856533,0.00019178,2]
[360609577,1746901840331,-500.0,0.00019178,2]
[360609578,1746901840342,-502.59709099,0.00019178,2]
[360609579,1746901840351,-513.9250557,0.00019178,2]
[360609580,1746901840360,-450.0,0.00019178,2]
[360609581,1746901840371,-401.3021021,0.00019178,2]
[360609582,1746901840383,-400.0,0.00019178,2]
[360609583,1746901840395,-400.0,0.00019178,2]
[360609584,1746901840406,-400.0,0.00019178,2]
[360609585,1746901840417,-400.0,0.00019178,2]
[360609586,1746901840426,-400.0,0.00019178,2]
[360609587,1746901840436,-400.0,0.00019178,2]
[360609588,1746901840445,-400.0,0.00019178,2]
[360609589,1746901840455,-400.0,0.00019178,2]
[360609590,1746901840464,-400.0,0.00019178,2]
[360609591,1746901840473,-400.0,0.00019178,2]
[360609592,1746901840482,-400.0,0.00019178,2]